{"text_format":"1","workbook":"xlsx","n_sheets":2,"sheets":["Sheet1","salim"],"not_rendered":{"charts":0,"images":0,"macros":1,"external_links":0,"defined_names":0,"comments":0,"pivot_tables":0},"unopened":[],"bounds":{"document_bytes":16777216,"sheet_cells":100000,"rows_first":2000,"rows_last":500,"rows_between":2000,"halvings":0,"cell_chars":16384,"cell_head_chars":4096},"cells_cut":0,"cells_raw":0,"read":"whole","date_system":"1900"}

{"sheet":"Sheet1","index":0,"n_rows":20,"n_cols":23,"rows_kept":20,"cut":false,"hidden":false,"merged":[[0,10,1,10],[0,11,1,11],[0,12,1,12],[2,14,10,20],[0,0,1,0],[0,1,1,1],[0,2,1,2],[0,3,0,7],[0,8,1,8],[0,9,1,9]]}
["الاسم","تاريخ الاستلام","تاريخ التسليم","عدد الحصص ",null,null,null,null,"عدد الحصص في الأسبوع","عدد أيام العمل خلال الفصل","عدد الحصص خلال الفصل","الفئة بالدينار","القيمة في الفصل"]
[null,null,null,"الاحد","الإثنين","الثلاثاء","الأربعاء","الخميس",null,null,null,null,null,null,null,null,null,null,null,null,null,"العطل الرسمية"]
["محمد 1","2018-10-14","2019-01-24",2,2,null,2,2,{"$f":"SUM(H3,G3,F3,E3,D3)","v":8},{"$f":"NETWORKDAYS.INTL(B3,C3,7)","v":75},null,15,{"$f":"L3*K3","v":0},null,"المطلوب حساب عدد الحصص خلال الفصل\nعلما بان بداية الفصل 14/10/2018\nونهاية الفصل 24/1/2019\nويتخلله أيام عطل رسمية ",null,null,null,null,null,null,"2018-10-23",6]
["محمد 2","2018-10-24","2018-12-19",null,null,3,3,3,9,{"$f":"NETWORKDAYS.INTL(B4,C4,7)","v":41},null,null,{"$f":"L4*K4","v":0},null,null,null,null,null,null,null,null,"2018-11-20",8]
["محمد 3","2018-10-14","2019-01-24",2,2,2,2,2,10,75,null,null,0,null,null,null,null,null,null,null,null,"2018-12-23",10]
["محمد 4",null,null,null,null,null,null,null,0,0,null,null,0,null,null,null,null,null,null,null,null,"2018-12-24",12]
["محمد 5",null,null,null,null,null,null,null,0,0,null,null,0,null,null,null,null,null,null,null,null,null,15]
["محمد 6",null,null,null,null,null,null,null,0,0,null,null,0]
["محمد 7",null,null,null,null,null,null,null,0,0,null,null,0]
["محمد 8",null,null,null,null,null,null,null,0,0,null,null,0]
["محمد 9",null,null,null,null,null,null,null,0,0,null,null,0]
["محمد 10",null,null,null,null,null,null,null,0,0,null,null,0]
["محمد 11",null,null,null,null,null,null,null,0,0,null,null,0]
["محمد 12",null,null,null,null,null,null,null,0,0,null,null,0]
["محمد 13",null,null,null,null,null,null,null,0,0,null,null,0]
["محمد 14",null,null,null,null,null,null,null,0,0,null,null,0]
["محمد 15",null,null,null,null,null,null,null,0,0,null,null,0]
["محمد 16",null,null,null,null,null,null,null,0,0,null,null,0]
["محمد 17",null,null,null,null,null,null,null,0,0,null,null,0]
["محمد 18",null,null,null,null,null,null,null,0,0,null,null,0]

{"sheet":"salim","index":1,"n_rows":22,"n_cols":23,"rows_kept":22,"cut":false,"hidden":false,"merged":[]}
[null,null,null,null,null,null,null,null,null,null,null,null," الجمعة والسّبت",null,"عدد ايام العطل االرسمية"]
[null,null,null,"عدد الحصص ",null,null,null,null,null,null,null,null,"كلّا",null,4,null,null,null,null,null,null,"العطل الرسمية"]
[]
["الاسم","تاريخ الاستلام","تاريخ التسليم","الأحد","الإثنين","الثلاثاء","الأربعاء","الخميس","الجمعة","السّبت",null,"عدد الايام الحقيقية","عدد ايام العمل"]
["محمد 1","2018-10-14","2019-01-24",14,14,13,15,15,null,null,null,103,71,null,null,null,null,null,null,null,null,"2018-10-23",6]
["محمد 2","2018-10-24","2018-12-19",8,8,7,9,8,null,null,null,57,40,null,null,null,null,null,null,null,null,"2018-11-20",8]
["محمد 3","2018-10-08","2019-01-24",14,15,14,16,16,null,null,null,109,75,null,null,null,null,null,null,null,null,"2018-12-23",10]
["محمد 4",null,null,null,null,null,null,null,null,null,null,null,null,null,null,null,null,null,null,null,null,"2018-12-24",12]
["محمد 5",null,null,null,null,null,null,null,null,null,null,null,null,null,null,null,null,null,null,null,null,null,15]
["محمد 6"]
["محمد 7"]
["محمد 8"]
["محمد 9"]
["محمد 10"]
["محمد 11"]
["محمد 12"]
["محمد 13"]
["محمد 14"]
["محمد 15"]
["محمد 16"]
["محمد 17"]
["محمد 18"]